Workbook

Sheet Instructions
A2: INSTRUCTIONS | M2: Now:
B4: This spreadsheet is a simple but powerful tool that will help you to analyse the profitability of your menu as
B5: well as monitor wastage. Follow the step-by-step guidelines below to get the most out of the spreadsheet.
B7: What does the Menu Profitability Analyser (MPA) Grid mean?
B8: The information you put into the Table of sales, costs and gross profit is sorted so it charts on a Profit Grid (below).
B9: Each corner has a name - the higher your item on the grid, the more Gross Profit (NOT %) the item makes
B10: relative to the other items you sell. The further to the RIGHT it is on the grid, the more popular it is in relation
B11: to the other items on your menu Obviously you want a menu with plenty of items that are both profitable AND popular!
B12: These we call BIG WINNERS. Items that are big sellers but don't make so much profit per item are the STEADY WINNERS.
B13: The USEFULS give you good profit per item but don't sell so many. Finally, you don't want the LOSERS on your menu -
B14: they don't sell and they make very little money!
A36: 1. Cautions
B38: Experienced spreadsheet users will be familiar with these cautions. They are included here to help less
B39: experienced users.
B41: Do not use the move command (cut and paste, drag and drop, Lotus 1-2-3 /M, etc.) to
B42: move any input data or formulas from one cell to another cell unless you are an experienced
B43: spreadsheet user and understand all of the implications of moving cells. Briefly, if a cell is
B44: moved, formulas that reference that cell will point to the new cell location. This can corrupt the
B45: spreadsheet.
B47: Do not delete or insert rows into the table as this will cause confusion when the table is sorted.
B49: If you suspect that either of the above have happened, you can use the 'Undo' command to return
B50: the spreadsheet to a prior state. If you are unable to undo the spreadsheet, you will need to close
B51: (do not save) the spreadsheet and then open an uncorrupted copy.
B53: The spreadsheet has been protected to prevent accidentally changing the formulas. If you need to
B54: make modifications to any of the sheets (e.g. change column widths, cell colors etc), you can change
B55: it by going to TOOLS > PROTECTION > UNPROTECT. The password you must use to have access to
B56: changes is "getHOHT".
B58: After you have made changes, it is a good idea to reprotect the sheet TOOLS > PROTECTION > PROTECT.
A60: 2. Instructions
A62: 1. | B62: It is suggested that you create a new folder in which to save the spreadsheet.
B63: Open the spreadsheet and go to the "Instructions" sheet (tab at the bottom of the screen).
B64: Now enter the relevant GST Rate in the box below. This will enable the spreadsheet to calculate
B65: all the columns without GST.
D67: GST Rate: | E67: 15
A69: 2. | B69: Go to the "Table" sheet (tab at the bottom of the screen) and start inputting the relevant
B70: information in the yellow cells. The program initially contains some examples for illustration purposes.
B71: You simply replace these with your information.
B72: You can input and change the information in any of the yellow cells. As you do this, the other
B73: grey columns will calculate automatically. The grey cells are protected and should not be changed.
B74: You can input up to 100 menu items.
B75: The table column headings are explained below:
B77: Number Sold | D77: Enter the total number of servings sold (from your sales register or dockets). This column is plotted on the horizontal axis of the Profit Grid.
B79: Cost of Item | D79: Enter the food cost of each serving (from your recipe cards or purchase invoices).
B81: Selling Price (inc GST) | D81: Enter the price at which you sell each serving (ie the price on your menu).
B83: Net Selling Price (without GST) | D83: This calculates the selling price less GST for each serving.
B85: Total Gross Sales (inc GST) | D85: This calculates your total gross revenue per serving for each item. It is the "Number Sold" multiplied by the "Selling Price (inc GST)".
B87: Gross Profit per Item (without GST) | D87: This calculates gross profit you are making on each serving sold. It is the "Cost of item" multiplied by the "Net Selling Price". This column is plotted on the verticle axis of the Profit Grid.
B89: Total Gross Profit (without GST) | D89: This calculates total gross profit you are making on this item. It is the "Number Sold" multiplied by the "Gross Profit per Item".
A91: 3. | B91: Once all your menu information has been inputted, click on the "Profit Grid" (tab at the bottom of the screen)
B92: to view the profitability matrix for your winelist.
A94: 4. | B94: You can now also use the "Sort by" buttons at the top of the table to sort the table by the relevant columns.
A96: 5. | B96: The overall totals for some of the columns are displayed in the grey boxes at the top of the table.
B97: The "Gross Profit Percentage" is also displayed. This figure is an indication of the overall (average)
B98: profitability of your menu.

Sheet Table
A1: Menu Profitability Analysis
A3: Totals: | B3: =SUM(B11:B110) -> 255 | F3: =SUM(F11:F110) -> 2416.1 | H3: =SUM(H11:H110) -> 1517.066522
G5: Gross Profit % | H5: =IF(F3=0,0,H3/F3) -> 0.6278988956
AA8: =MAX(B11:B110) -> 33 | AB8: =MAX(G11:G110) -> 10.24347826
AA9: 100 | AB9: 100
A10: ="Menu Item"&TEXT(NOW(),"") -> Menu Item | B10: Number Sold | C10: Cost of Item | D10: Selling Price (inc GST) | E10: Net Selling Price (without GST) | F10: Total Gross Sales (inc GST) | G10: Gross Profit per Item (without GST) | H10: Total Gross Profit (without GST) | AA10: # prop | AB10: GP prop
A11: Chocolate Macadamia Brownie | B11: 33 | C11: 1.23 | D11: 8.5 | E11: =D11*(100/(100+Instructions!$E$67)) -> 7.391304348 | F11: =B11*D11 -> 280.5 | G11: =IF(ISBLANK(D11),0,E11-C11) -> 6.161304348 | H11: =IF(G11="","",B11*G11) -> 203.3230435 | AA11: =IF(ISBLANK(B11),NA(),B11*(AA$9/AA$8)) -> 100 | AB11: =IF(ISBLANK(C11),NA(),G11*(AB$9/AB$8)) -> 60.14855688
A12: Lemon crush Cake | B12: 23 | C12: 1.3 | D12: 6.5 | E12: =D12*(100/(100+Instructions!$E$67)) -> 5.652173913 | F12: 149.5 | G12: 4.352173913 | H12: 100.1 | AA12: 69.6969697 | AB12: 42.48726655
A13: Chocolate hazelnut Mousse | B13: 22 | C13: 1.5 | D13: 5.8 | E13: =D13*(100/(100+Instructions!$E$67)) -> 5.043478261 | F13: 127.6 | G13: 3.543478261 | H13: 77.95652174 | AA13: 66.66666667 | AB13: 34.59252971
A14: Chicken Caesar Salad | B14: 19 | C14: 2.7 | D14: 10.5 | E14: =D14*(100/(100+Instructions!$E$67)) -> 9.130434783 | F14: 199.5 | G14: 6.430434783 | H14: 122.1782609 | AA14: 57.57575758 | AB14: 62.77589134
A15: Mixed Gypsy Grill | B15: 18 | C15: 5.8 | D15: 17.5 | E15: =D15*(100/(100+Instructions!$E$67)) -> 15.2173913 | F15: 315 | G15: 9.417391304 | H15: 169.5130435 | AA15: 54.54545455 | AB15: 91.93548387
A16: Nachos | B16: 16 | C16: 1.5 | D16: 10 | E16: =D16*(100/(100+Instructions!$E$67)) -> 8.695652174 | F16: 160 | G16: 7.195652174 | H16: 115.1304348 | AA16: 48.48484848 | AB16: 70.24617997
A17: Pumpkin Soup | B17: 16 | C17: 0.6 | D17: 6 | E17: =D17*(100/(100+Instructions!$E$67)) -> 5.217391304 | F17: 96 | G17: 4.617391304 | H17: 73.87826087 | AA17: 48.48484848 | AB17: 45.07640068
A18: Mango with liqueur | B18: 15 | C18: 1.8 | D18: 6.5 | E18: =D18*(100/(100+Instructions!$E$67)) -> 5.652173913 | F18: 97.5 | G18: 3.852173913 | H18: 57.7826087 | AA18: 45.45454545 | AB18: 37.60611205
A19: Chilli chicken breast with kumera | B19: 12 | C19: 3.3 | D19: 14.5 | E19: =D19*(100/(100+Instructions!$E$67)) -> 12.60869565 | F19: 174 | G19: 9.308695652 | H19: 111.7043478 | AA19: 36.36363636 | AB19: 90.87436333
A20: Fettuccine - chicken & mushroom | B20: 12 | C20: 2.6 | D20: 11.5 | E20: =D20*(100/(100+Instructions!$E$67)) -> 10 | F20: 138 | G20: 7.4 | H20: 88.8 | AA20: 36.36363636 | AB20: 72.24108659
A21: Strawberry Coppa Gelato | B21: 12 | C21: 1.2 | D21: 8.5 | E21: =D21*(100/(100+Instructions!$E$67)) -> 7.391304348 | F21: 102 | G21: 6.191304348 | H21: 74.29565217 | AA21: 36.36363636 | AB21: 60.44142615
A22: Bruschetta | B22: 10 | C22: 1.5 | D22: 6.5 | E22: =D22*(100/(100+Instructions!$E$67)) -> 5.652173913 | F22: 65 | G22: 4.152173913 | H22: 41.52173913 | AA22: 30.3030303 | AB22: 40.53480475
A23: Caesar Salad | B23: 8 | C23: 2.2 | D23: 8.9 | E23: =D23*(100/(100+Instructions!$E$67)) -> 7.739130435 | F23: 71.2 | G23: 5.539130435 | H23: 44.31304348 | AA23: 24.24242424 | AB23: 54.07470289
A24: Grilled Snapper with fennel | B24: 7 | C24: 6.5 | D24: 15.5 | E24: =D24*(100/(100+Instructions!$E$67)) -> 13.47826087 | F24: 108.5 | G24: 6.97826087 | H24: 48.84782609 | AA24: 21.21212121 | AB24: 68.12393888
A25: Chicken Focaccia | B25: 7 | C25: 3.7 | D25: 7.9 | E25: =D25*(100/(100+Instructions!$E$67)) -> 6.869565217 | F25: 55.3 | G25: 3.169565217 | H25: 22.18695652 | AA25: 21.21212121 | AB25: 30.94227504
A26: Sirloin Steak with Parisian Butter | B26: 6 | C26: 5.2 | D26: 15 | E26: =D26*(100/(100+Instructions!$E$67)) -> 13.04347826 | F26: 90 | G26: 7.843478261 | H26: 47.06086957 | AA26: 18.18181818 | AB26: 76.5704584
A27: Penne Arrabiata | B27: 5 | C27: 2 | D27: 9.9 | E27: =D27*(100/(100+Instructions!$E$67)) -> 8.608695652 | F27: 49.5 | G27: 6.608695652 | H27: 33.04347826 | AA27: 15.15151515 | AB27: 64.51612903
A28: Mediterranean Focaccia | B28: 5 | C28: 3 | D28: 7.9 | E28: =D28*(100/(100+Instructions!$E$67)) -> 6.869565217 | F28: 39.5 | G28: 3.869565217 | H28: 19.34782609 | AA28: 15.15151515 | AB28: 37.77589134
A29: Toscana Focaccia | B29: 5 | C29: 1.5 | D29: 7.5 | E29: =D29*(100/(100+Instructions!$E$67)) -> 6.52173913 | F29: 37.5 | G29: 5.02173913 | H29: 25.10869565 | AA29: 15.15151515 | AB29: 49.0237691
A30: Prawn Caesar Salad | B30: 4 | C30: 2.8 | D30: 15 | E30: =D30*(100/(100+Instructions!$E$67)) -> 13.04347826 | F30: 60 | G30: 10.24347826 | H30: 40.97391304 | AA30: 12.12121212 | AB30: 100
E31: =D31*(100/(100+Instructions!$E$67)) -> 0 | F31: 0 | G31: 0 | H31: 0
E32: =D32*(100/(100+Instructions!$E$67)) -> 0 | F32: 0 | G32: 0 | H32: 0
E33: =D33*(100/(100+Instructions!$E$67)) -> 0 | F33: 0 | G33: 0 | H33: 0
E34: =D34*(100/(100+Instructions!$E$67)) -> 0 | F34: 0 | G34: 0 | H34: 0
E35: =D35*(100/(100+Instructions!$E$67)) -> 0 | F35: 0 | G35: 0 | H35: 0
E36: =D36*(100/(100+Instructions!$E$67)) -> 0 | F36: 0 | G36: 0 | H36: 0
E37: =D37*(100/(100+Instructions!$E$67)) -> 0 | F37: 0 | G37: 0 | H37: 0
E38: =D38*(100/(100+Instructions!$E$67)) -> 0 | F38: 0 | G38: 0 | H38: 0
E39: =D39*(100/(100+Instructions!$E$67)) -> 0 | F39: 0 | G39: 0 | H39: 0
E40: =D40*(100/(100+Instructions!$E$67)) -> 0 | F40: 0 | G40: 0 | H40: 0
E41: =D41*(100/(100+Instructions!$E$67)) -> 0 | F41: 0 | G41: 0 | H41: 0
E42: =D42*(100/(100+Instructions!$E$67)) -> 0 | F42: 0 | G42: 0 | H42: 0
E43: =D43*(100/(100+Instructions!$E$67)) -> 0 | F43: =B43*D43 -> 0 | G43: =IF(ISBLANK(D43),0,E43-C43) -> 0 | H43: =IF(G43="","",B43*G43) -> 0 | AA43: =IF(ISBLANK(B43),NA(),B43*(AA$9/AA$8)) ->  | AB43: =IF(ISBLANK(C43),NA(),G43*(AB$9/AB$8)) -> 
E44: =D44*(100/(100+Instructions!$E$67)) -> 0 | F44: 0 | G44: 0 | H44: 0
E45: =D45*(100/(100+Instructions!$E$67)) -> 0 | F45: 0 | G45: 0 | H45: 0
E46: =D46*(100/(100+Instructions!$E$67)) -> 0 | F46: 0 | G46: 0 | H46: 0
E47: =D47*(100/(100+Instructions!$E$67)) -> 0 | F47: 0 | G47: 0 | H47: 0
E48: =D48*(100/(100+Instructions!$E$67)) -> 0 | F48: 0 | G48: 0 | H48: 0
E49: =D49*(100/(100+Instructions!$E$67)) -> 0 | F49: 0 | G49: 0 | H49: 0
E50: =D50*(100/(100+Instructions!$E$67)) -> 0 | F50: 0 | G50: 0 | H50: 0
E51: =D51*(100/(100+Instructions!$E$67)) -> 0 | F51: 0 | G51: 0 | H51: 0
E52: =D52*(100/(100+Instructions!$E$67)) -> 0 | F52: 0 | G52: 0 | H52: 0
E53: =D53*(100/(100+Instructions!$E$67)) -> 0 | F53: 0 | G53: 0 | H53: 0
E54: =D54*(100/(100+Instructions!$E$67)) -> 0 | F54: 0 | G54: 0 | H54: 0
E55: =D55*(100/(100+Instructions!$E$67)) -> 0 | F55: 0 | G55: 0 | H55: 0
E56: =D56*(100/(100+Instructions!$E$67)) -> 0 | F56: 0 | G56: 0 | H56: 0
E57: =D57*(100/(100+Instructions!$E$67)) -> 0 | F57: 0 | G57: 0 | H57: 0
E58: =D58*(100/(100+Instructions!$E$67)) -> 0 | F58: 0 | G58: 0 | H58: 0
E59: =D59*(100/(100+Instructions!$E$67)) -> 0 | F59: 0 | G59: 0 | H59: 0
E60: =D60*(100/(100+Instructions!$E$67)) -> 0 | F60: 0 | G60: 0 | H60: 0
E61: =D61*(100/(100+Instructions!$E$67)) -> 0 | F61: 0 | G61: 0 | H61: 0
E62: =D62*(100/(100+Instructions!$E$67)) -> 0 | F62: 0 | G62: 0 | H62: 0
E63: =D63*(100/(100+Instructions!$E$67)) -> 0 | F63: 0 | G63: 0 | H63: 0
E64: =D64*(100/(100+Instructions!$E$67)) -> 0 | F64: 0 | G64: 0 | H64: 0
E65: =D65*(100/(100+Instructions!$E$67)) -> 0 | F65: 0 | G65: 0 | H65: 0
E66: =D66*(100/(100+Instructions!$E$67)) -> 0 | F66: 0 | G66: 0 | H66: 0
E67: =D67*(100/(100+Instructions!$E$67)) -> 0 | F67: 0 | G67: 0 | H67: 0
E68: =D68*(100/(100+Instructions!$E$67)) -> 0 | F68: 0 | G68: 0 | H68: 0
E69: =D69*(100/(100+Instructions!$E$67)) -> 0 | F69: 0 | G69: 0 | H69: 0
E70: =D70*(100/(100+Instructions!$E$67)) -> 0 | F70: 0 | G70: 0 | H70: 0
E71: =D71*(100/(100+Instructions!$E$67)) -> 0 | F71: 0 | G71: 0 | H71: 0
E72: =D72*(100/(100+Instructions!$E$67)) -> 0 | F72: 0 | G72: 0 | H72: 0
E73: =D73*(100/(100+Instructions!$E$67)) -> 0 | F73: 0 | G73: 0 | H73: 0
E74: =D74*(100/(100+Instructions!$E$67)) -> 0 | F74: 0 | G74: 0 | H74: 0
E75: =D75*(100/(100+Instructions!$E$67)) -> 0 | F75: =B75*D75 -> 0 | G75: =IF(ISBLANK(D75),0,E75-C75) -> 0 | H75: =IF(G75="","",B75*G75) -> 0 | AA75: =IF(ISBLANK(B75),NA(),B75*(AA$9/AA$8)) ->  | AB75: =IF(ISBLANK(C75),NA(),G75*(AB$9/AB$8)) -> 
E76: =D76*(100/(100+Instructions!$E$67)) -> 0 | F76: 0 | G76: 0 | H76: 0
E77: =D77*(100/(100+Instructions!$E$67)) -> 0 | F77: 0 | G77: 0 | H77: 0
E78: =D78*(100/(100+Instructions!$E$67)) -> 0 | F78: 0 | G78: 0 | H78: 0
E79: =D79*(100/(100+Instructions!$E$67)) -> 0 | F79: 0 | G79: 0 | H79: 0
E80: =D80*(100/(100+Instructions!$E$67)) -> 0 | F80: 0 | G80: 0 | H80: 0
E81: =D81*(100/(100+Instructions!$E$67)) -> 0 | F81: 0 | G81: 0 | H81: 0
E82: =D82*(100/(100+Instructions!$E$67)) -> 0 | F82: 0 | G82: 0 | H82: 0
E83: =D83*(100/(100+Instructions!$E$67)) -> 0 | F83: 0 | G83: 0 | H83: 0
E84: =D84*(100/(100+Instructions!$E$67)) -> 0 | F84: 0 | G84: 0 | H84: 0
E85: =D85*(100/(100+Instructions!$E$67)) -> 0 | F85: 0 | G85: 0 | H85: 0
E86: =D86*(100/(100+Instructions!$E$67)) -> 0 | F86: 0 | G86: 0 | H86: 0
E87: =D87*(100/(100+Instructions!$E$67)) -> 0 | F87: 0 | G87: 0 | H87: 0
E88: =D88*(100/(100+Instructions!$E$67)) -> 0 | F88: 0 | G88: 0 | H88: 0
E89: =D89*(100/(100+Instructions!$E$67)) -> 0 | F89: 0 | G89: 0 | H89: 0
E90: =D90*(100/(100+Instructions!$E$67)) -> 0 | F90: 0 | G90: 0 | H90: 0
E91: =D91*(100/(100+Instructions!$E$67)) -> 0 | F91: 0 | G91: 0 | H91: 0
E92: =D92*(100/(100+Instructions!$E$67)) -> 0 | F92: 0 | G92: 0 | H92: 0
E93: =D93*(100/(100+Instructions!$E$67)) -> 0 | F93: 0 | G93: 0 | H93: 0
E94: =D94*(100/(100+Instructions!$E$67)) -> 0 | F94: 0 | G94: 0 | H94: 0
E95: =D95*(100/(100+Instructions!$E$67)) -> 0 | F95: 0 | G95: 0 | H95: 0
E96: =D96*(100/(100+Instructions!$E$67)) -> 0 | F96: 0 | G96: 0 | H96: 0
E97: =D97*(100/(100+Instructions!$E$67)) -> 0 | F97: 0 | G97: 0 | H97: 0
E98: =D98*(100/(100+Instructions!$E$67)) -> 0 | F98: 0 | G98: 0 | H98: 0
E99: =D99*(100/(100+Instructions!$E$67)) -> 0 | F99: 0 | G99: 0 | H99: 0
E100: =D100*(100/(100+Instructions!$E$67)) -> 0 | F100: 0 | G100: 0 | H100: 0
E101: =D101*(100/(100+Instructions!$E$67)) -> 0 | F101: 0 | G101: 0 | H101: 0
E102: =D102*(100/(100+Instructions!$E$67)) -> 0 | F102: 0 | G102: 0 | H102: 0
E103: =D103*(100/(100+Instructions!$E$67)) -> 0 | F103: 0 | G103: 0 | H103: 0
E104: =D104*(100/(100+Instructions!$E$67)) -> 0 | F104: 0 | G104: 0 | H104: 0
E105: =D105*(100/(100+Instructions!$E$67)) -> 0 | F105: 0 | G105: 0 | H105: 0
E106: =D106*(100/(100+Instructions!$E$67)) -> 0 | F106: 0 | G106: 0 | H106: 0
E107: =D107*(100/(100+Instructions!$E$67)) -> 0 | F107: 0 | G107: 0 | H107: =IF(G107="","",B107*G107) -> 0
E108: =D108*(100/(100+Instructions!$E$67)) -> 0 | F108: 0 | G108: 0 | H108: 0
E109: =D109*(100/(100+Instructions!$E$67)) -> 0 | F109: 0 | G109: 0 | H109: 0
E110: =D110*(100/(100+Instructions!$E$67)) -> 0 | F110: 0 | G110: 0 | H110: 0

Sheet Template
A1: Menu Profitability Analysis
A3: Totals: | B3: =SUM(B11:B110) -> 0 | F3: =SUM(F11:F110) -> 0 | H3: =SUM(H11:H110) -> 0
G5: Gross Profit % | H5: =IF(F3=0,0,H3/F3) -> 0
AA8: =MAX(B11:B110) -> 0 | AB8: =MAX(G11:G110) -> 0
AA9: 100 | AB9: 100
A10: ="Menu Item"&TEXT(NOW(),"") -> Menu Item | B10: Number Sold | C10: Cost of Item | D10: Selling Price (inc GST) | E10: Net Selling Price (without GST) | F10: Total Gross Sales (inc GST) | G10: Gross Profit per Item (without GST) | H10: Total Gross Profit (without GST) | AA10: # prop | AB10: GP prop
E11: =D11*(100/(100+Instructions!$E$67)) -> 0 | F11: =B11*D11 -> 0 | G11: =IF(ISBLANK(D11),0,E11-C11) -> 0 | H11: =IF(G11="","",B11*G11) -> 0 | AA11: =IF(ISBLANK(B11),NA(),B11*(AA$9/AA$8)) ->  | AB11: =IF(ISBLANK(C11),NA(),G11*(AB$9/AB$8)) -> 
E12: =D12*(100/(100+Instructions!$E$67)) -> 0 | F12: 0 | G12: 0 | H12: 0
E13: =D13*(100/(100+Instructions!$E$67)) -> 0 | F13: 0 | G13: 0 | H13: 0
E14: =D14*(100/(100+Instructions!$E$67)) -> 0 | F14: 0 | G14: 0 | H14: 0
E15: =D15*(100/(100+Instructions!$E$67)) -> 0 | F15: 0 | G15: 0 | H15: 0
E16: =D16*(100/(100+Instructions!$E$67)) -> 0 | F16: 0 | G16: 0 | H16: 0
E17: =D17*(100/(100+Instructions!$E$67)) -> 0 | F17: 0 | G17: 0 | H17: 0
E18: =D18*(100/(100+Instructions!$E$67)) -> 0 | F18: 0 | G18: 0 | H18: 0
E19: =D19*(100/(100+Instructions!$E$67)) -> 0 | F19: 0 | G19: 0 | H19: 0
E20: =D20*(100/(100+Instructions!$E$67)) -> 0 | F20: 0 | G20: 0 | H20: 0
E21: =D21*(100/(100+Instructions!$E$67)) -> 0 | F21: 0 | G21: 0 | H21: 0
E22: =D22*(100/(100+Instructions!$E$67)) -> 0 | F22: 0 | G22: 0 | H22: 0
E23: =D23*(100/(100+Instructions!$E$67)) -> 0 | F23: 0 | G23: 0 | H23: 0
E24: =D24*(100/(100+Instructions!$E$67)) -> 0 | F24: 0 | G24: 0 | H24: 0
E25: =D25*(100/(100+Instructions!$E$67)) -> 0 | F25: 0 | G25: 0 | H25: 0
E26: =D26*(100/(100+Instructions!$E$67)) -> 0 | F26: 0 | G26: 0 | H26: 0
E27: =D27*(100/(100+Instructions!$E$67)) -> 0 | F27: 0 | G27: 0 | H27: 0
E28: =D28*(100/(100+Instructions!$E$67)) -> 0 | F28: 0 | G28: 0 | H28: 0
E29: =D29*(100/(100+Instructions!$E$67)) -> 0 | F29: 0 | G29: 0 | H29: 0
E30: =D30*(100/(100+Instructions!$E$67)) -> 0 | F30: 0 | G30: 0 | H30: 0
E31: =D31*(100/(100+Instructions!$E$67)) -> 0 | F31: 0 | G31: 0 | H31: 0
E32: =D32*(100/(100+Instructions!$E$67)) -> 0 | F32: 0 | G32: 0 | H32: 0
E33: =D33*(100/(100+Instructions!$E$67)) -> 0 | F33: 0 | G33: 0 | H33: 0
E34: =D34*(100/(100+Instructions!$E$67)) -> 0 | F34: 0 | G34: 0 | H34: 0
E35: =D35*(100/(100+Instructions!$E$67)) -> 0 | F35: 0 | G35: 0 | H35: 0
E36: =D36*(100/(100+Instructions!$E$67)) -> 0 | F36: 0 | G36: 0 | H36: 0
E37: =D37*(100/(100+Instructions!$E$67)) -> 0 | F37: 0 | G37: 0 | H37: 0
E38: =D38*(100/(100+Instructions!$E$67)) -> 0 | F38: 0 | G38: 0 | H38: 0
E39: =D39*(100/(100+Instructions!$E$67)) -> 0 | F39: 0 | G39: 0 | H39: 0
E40: =D40*(100/(100+Instructions!$E$67)) -> 0 | F40: 0 | G40: 0 | H40: 0
E41: =D41*(100/(100+Instructions!$E$67)) -> 0 | F41: 0 | G41: 0 | H41: 0
E42: =D42*(100/(100+Instructions!$E$67)) -> 0 | F42: 0 | G42: 0 | H42: 0
E43: =D43*(100/(100+Instructions!$E$67)) -> 0 | F43: 0 | G43: 0 | H43: 0
E44: =D44*(100/(100+Instructions!$E$67)) -> 0 | F44: 0 | G44: 0 | H44: 0
E45: =D45*(100/(100+Instructions!$E$67)) -> 0 | F45: 0 | G45: 0 | H45: 0
E46: =D46*(100/(100+Instructions!$E$67)) -> 0 | F46: 0 | G46: 0 | H46: 0
E47: =D47*(100/(100+Instructions!$E$67)) -> 0 | F47: 0 | G47: 0 | H47: 0
E48: =D48*(100/(100+Instructions!$E$67)) -> 0 | F48: 0 | G48: 0 | H48: 0
E49: =D49*(100/(100+Instructions!$E$67)) -> 0 | F49: 0 | G49: 0 | H49: 0
E50: =D50*(100/(100+Instructions!$E$67)) -> 0 | F50: 0 | G50: 0 | H50: 0
E51: =D51*(100/(100+Instructions!$E$67)) -> 0 | F51: 0 | G51: 0 | H51: 0
E52: =D52*(100/(100+Instructions!$E$67)) -> 0 | F52: 0 | G52: 0 | H52: 0
E53: =D53*(100/(100+Instructions!$E$67)) -> 0 | F53: 0 | G53: 0 | H53: 0
E54: =D54*(100/(100+Instructions!$E$67)) -> 0 | F54: 0 | G54: 0 | H54: 0
E55: =D55*(100/(100+Instructions!$E$67)) -> 0 | F55: 0 | G55: 0 | H55: 0
E56: =D56*(100/(100+Instructions!$E$67)) -> 0 | F56: 0 | G56: 0 | H56: 0
E57: =D57*(100/(100+Instructions!$E$67)) -> 0 | F57: 0 | G57: 0 | H57: 0
E58: =D58*(100/(100+Instructions!$E$67)) -> 0 | F58: 0 | G58: 0 | H58: 0
E59: =D59*(100/(100+Instructions!$E$67)) -> 0 | F59: 0 | G59: 0 | H59: 0
E60: =D60*(100/(100+Instructions!$E$67)) -> 0 | F60: 0 | G60: 0 | H60: 0
E61: =D61*(100/(100+Instructions!$E$67)) -> 0 | F61: 0 | G61: 0 | H61: 0
E62: =D62*(100/(100+Instructions!$E$67)) -> 0 | F62: 0 | G62: 0 | H62: 0
E63: =D63*(100/(100+Instructions!$E$67)) -> 0 | F63: 0 | G63: 0 | H63: 0
E64: =D64*(100/(100+Instructions!$E$67)) -> 0 | F64: 0 | G64: 0 | H64: 0
E65: =D65*(100/(100+Instructions!$E$67)) -> 0 | F65: 0 | G65: 0 | H65: 0
E66: =D66*(100/(100+Instructions!$E$67)) -> 0 | F66: 0 | G66: 0 | H66: 0
E67: =D67*(100/(100+Instructions!$E$67)) -> 0 | F67: 0 | G67: 0 | H67: 0
E68: =D68*(100/(100+Instructions!$E$67)) -> 0 | F68: 0 | G68: 0 | H68: 0
E69: =D69*(100/(100+Instructions!$E$67)) -> 0 | F69: 0 | G69: 0 | H69: 0
E70: =D70*(100/(100+Instructions!$E$67)) -> 0 | F70: 0 | G70: 0 | H70: 0
E71: =D71*(100/(100+Instructions!$E$67)) -> 0 | F71: 0 | G71: 0 | H71: 0
E72: =D72*(100/(100+Instructions!$E$67)) -> 0 | F72: 0 | G72: 0 | H72: 0
E73: =D73*(100/(100+Instructions!$E$67)) -> 0 | F73: 0 | G73: 0 | H73: 0
E74: =D74*(100/(100+Instructions!$E$67)) -> 0 | F74: 0 | G74: 0 | H74: 0
E75: =D75*(100/(100+Instructions!$E$67)) -> 0 | F75: =B75*D75 -> 0 | G75: =IF(ISBLANK(D75),0,E75-C75) -> 0 | H75: =IF(G75="","",B75*G75) -> 0 | AA75: =IF(ISBLANK(B75),NA(),B75*(AA$9/AA$8)) ->  | AB75: =IF(ISBLANK(C75),NA(),G75*(AB$9/AB$8)) -> 
E76: =D76*(100/(100+Instructions!$E$67)) -> 0 | F76: 0 | G76: 0 | H76: 0
E77: =D77*(100/(100+Instructions!$E$67)) -> 0 | F77: 0 | G77: 0 | H77: 0
E78: =D78*(100/(100+Instructions!$E$67)) -> 0 | F78: 0 | G78: 0 | H78: 0
E79: =D79*(100/(100+Instructions!$E$67)) -> 0 | F79: 0 | G79: 0 | H79: 0
E80: =D80*(100/(100+Instructions!$E$67)) -> 0 | F80: 0 | G80: 0 | H80: 0
E81: =D81*(100/(100+Instructions!$E$67)) -> 0 | F81: 0 | G81: 0 | H81: 0
E82: =D82*(100/(100+Instructions!$E$67)) -> 0 | F82: 0 | G82: 0 | H82: 0
E83: =D83*(100/(100+Instructions!$E$67)) -> 0 | F83: 0 | G83: 0 | H83: 0
E84: =D84*(100/(100+Instructions!$E$67)) -> 0 | F84: 0 | G84: 0 | H84: 0
E85: =D85*(100/(100+Instructions!$E$67)) -> 0 | F85: 0 | G85: 0 | H85: 0
E86: =D86*(100/(100+Instructions!$E$67)) -> 0 | F86: 0 | G86: 0 | H86: 0
E87: =D87*(100/(100+Instructions!$E$67)) -> 0 | F87: 0 | G87: 0 | H87: 0
E88: =D88*(100/(100+Instructions!$E$67)) -> 0 | F88: 0 | G88: 0 | H88: 0
E89: =D89*(100/(100+Instructions!$E$67)) -> 0 | F89: 0 | G89: 0 | H89: 0
E90: =D90*(100/(100+Instructions!$E$67)) -> 0 | F90: 0 | G90: 0 | H90: 0
E91: =D91*(100/(100+Instructions!$E$67)) -> 0 | F91: 0 | G91: 0 | H91: 0
E92: =D92*(100/(100+Instructions!$E$67)) -> 0 | F92: 0 | G92: 0 | H92: 0
E93: =D93*(100/(100+Instructions!$E$67)) -> 0 | F93: 0 | G93: 0 | H93: 0
E94: =D94*(100/(100+Instructions!$E$67)) -> 0 | F94: 0 | G94: 0 | H94: 0
E95: =D95*(100/(100+Instructions!$E$67)) -> 0 | F95: 0 | G95: 0 | H95: 0
E96: =D96*(100/(100+Instructions!$E$67)) -> 0 | F96: 0 | G96: 0 | H96: 0
E97: =D97*(100/(100+Instructions!$E$67)) -> 0 | F97: 0 | G97: 0 | H97: 0
E98: =D98*(100/(100+Instructions!$E$67)) -> 0 | F98: 0 | G98: 0 | H98: 0
E99: =D99*(100/(100+Instructions!$E$67)) -> 0 | F99: 0 | G99: 0 | H99: 0
E100: =D100*(100/(100+Instructions!$E$67)) -> 0 | F100: 0 | G100: 0 | H100: 0
E101: =D101*(100/(100+Instructions!$E$67)) -> 0 | F101: 0 | G101: 0 | H101: 0
E102: =D102*(100/(100+Instructions!$E$67)) -> 0 | F102: 0 | G102: 0 | H102: 0
E103: =D103*(100/(100+Instructions!$E$67)) -> 0 | F103: 0 | G103: 0 | H103: 0
E104: =D104*(100/(100+Instructions!$E$67)) -> 0 | F104: 0 | G104: 0 | H104: 0
E105: =D105*(100/(100+Instructions!$E$67)) -> 0 | F105: 0 | G105: 0 | H105: 0
E106: =D106*(100/(100+Instructions!$E$67)) -> 0 | F106: 0 | G106: 0 | H106: 0
E107: =D107*(100/(100+Instructions!$E$67)) -> 0 | F107: 0 | G107: 0 | H107: 0
E108: =D108*(100/(100+Instructions!$E$67)) -> 0 | F108: 0 | G108: 0 | H108: 0
E109: =D109*(100/(100+Instructions!$E$67)) -> 0 | F109: 0 | G109: 0 | H109: 0
E110: =D110*(100/(100+Instructions!$E$67)) -> 0 | F110: 0 | G110: 0 | H110: 0
